bitfinex/quotes_ETHUSD_20240711
["timestamp","ask_amount","ask_price","bid_price","bid_amount"]
[1720706174720,0.65546986,3178.8,3178.0,3.14656]
[1720706175026,1.08947987,3178.7,3178.1,3.20945643]
[1720706175183,1.31093973,3179.1,3178.3,3.14633]
[1720706175184,0.65546986,3178.9,3178.3,3.14633]
[1720706175385,0.65546986,3178.9,3178.5,3.14612]
[1720706175637,0.79465525,3178.9,3178.6,3.14602]
[1720706175837,0.65546986,3179.1,3178.6,3.14602]
[1720706176117,0.79458088,3179.1,3178.5,3.14605]
[1720706176350,0.65546986,3178.9,3178.6,3.14603]
[1720706176635,0.65546986,3179.0,3178.6,3.14603]
[1720706177188,0.65546986,3178.8,3178.4,3.14613]
[1720706177392,0.65546986,3178.8,3178.1,3.14644]
[1720706177639,0.65546986,3178.8,3178.1,0.95807174]
[1720706177783,0.65546986,3178.8,3178.0,3.14656]
[1720706177784,0.65546986,3178.6,3178.0,3.14656]
[1720706177985,0.65546986,3178.7,3178.1,3.14646]
[1720706178180,0.65546986,3178.6,3178.3,3.14632]
[1720706178411,0.9832048,3178.8,3178.5,3.14604]
[1720706178412,0.65546986,3178.7,3178.5,3.14604]
[1720706178631,0.65546986,3178.8,3178.2,0.06292418]
[1720706178797,0.65546986,3178.8,3178.3,3.14629]
[1720706179001,0.65738802,3178.8,3178.3,3.14624]
[1720706179201,0.79668446,3178.7,3178.3,3.14624]
[1720706179397,0.65738802,3178.8,3178.2,3.14638]
[1720706179627,0.13925139,3178.7,3178.2,3.14638]
[1720706179831,0.65738802,3178.8,3178.3,3.14626]
[1720706180036,0.13926589,3178.7,3178.0,3.14658]
[1720706180206,0.65738802,3178.7,3177.9,6.43436736]
[1720706180391,0.13926589,3178.6,3178.2,3.14642]
[1720706180610,0.65738802,3178.7,3178.2,3.14642]
[1720706180812,0.13927799,3178.6,3178.2,3.14642]
[1720706181131,0.65738802,3178.8,3178.2,3.14642]
[1720706181340,0.65738802,3178.8,3178.2,3.775722]
[1720706181512,0.65738802,3178.9,3178.4,3.14622]
[1720706181917,0.65738802,3178.9,3178.2,3.775652]
[1720706182228,0.65738802,3178.8,3177.9,3.28767736]
[1720706182443,0.65738802,3178.6,3177.9,3.28767736]
[1720706182613,0.65738802,3178.6,3178.1,3.14652]
[1720706182817,0.65738802,3178.8,3178.1,3.14652]
[1720706183028,0.65738802,3178.7,3178.1,3.14652]
[1720706183215,0.13920118,3178.6,3178.1,3.14652]
[1720706183413,0.65738802,3178.7,3178.1,3.14652]
[1720706183851,0.13920281,3178.6,3177.9,6.43438736]
[1720706184155,0.65738802,3178.6,3177.9,3.28767736]
[1720706184354,0.65738802,3178.4,3177.9,3.28767736]
[1720706184518,0.65738802,3178.4,3177.9,6.43437736]
[1720706184711,0.65738802,3178.5,3177.9,3.28767736]
[1720706184964,3.14643,3178.2,3177.7,1.27]
[1720706185260,0.79657713,3178.1,3177.7,1.27]
[1720706185427,0.65738802,3178.0,3177.7,1.27]
[1720706185762,0.65738802,3178.1,3177.7,1.27]
[1720706186126,0.65738802,3178.2,3177.7,1.27]
[1720706186315,0.65738802,3178.1,3177.7,1.27]
[1720706186520,0.65738802,3178.2,3177.7,1.27]
[1720706186743,0.65738802,3178.3,3177.7,1.27]
[1720706186947,0.65738802,3178.2,3177.7,1.27]
[1720706187269,0.13916224,3178.1,3177.7,1.27]
[1720706188022,0.13916224,3178.1,3177.8,3.20974735]
[1720706188227,5.11515387,3178.8,3177.7,1.27]
[1720706188228,0.98608203,3178.6,3177.7,1.27]
[1720706188441,0.12088696,3178.5,3177.7,4.41687]
[1720706188638,0.12088696,3178.4,3177.9,3.1467]
[1720706188863,0.98608203,3178.7,3177.8,3.14682]
[1720706189068,0.12589924,3178.6,3178.1,3.14652]
[1720706189239,0.98608203,3178.8,3178.1,3.14652]
[1720706189444,0.12585777,3178.7,3178.1,0.540572]
[1720706189644,0.98608203,3178.8,3178.0,2.32212811]
[1720706189841,0.12583885,3178.7,3178.3,3.14631]
[1720706190024,0.98608203,3178.9,3178.5,3.1461]
[1720706190230,0.98608203,3178.9,3178.0,2.2592]
[1720706190231,0.98608203,3179.3,3178.8,3.14583]
[1720706190431,0.98608203,3179.6,3179.0,3.14558]
[1720706190730,0.12560381,3179.5,3179.1,3.14547]
[1720706190925,0.98608203,3179.7,3179.1,3.14547]
[1720706191164,0.12558012,3179.6,3179.1,3.14547]
[1720706191375,0.98608203,3179.7,3179.1,3.14547]
[1720706191376,0.12557578,3179.5,3179.1,3.14547]
[1720706191667,0.98608203,3180.1,3179.4,3.14517]
[1720706191824,0.12545741,3180.0,3179.4,3.14517]
[1720706192030,0.98608203,3180.2,3179.4,3.14517]
[1720706192223,0.98608203,3180.4,3179.6,3.14503]
[1720706192429,0.12535208,3180.3,3179.6,3.14503]
[1720706192626,3.34678203,3180.5,3179.6,3.14503]
[1720706192840,0.12528254,3180.4,3179.4,3.459687]
[1720706193059,0.12528254,3180.3,3179.4,3.459677]
[1720706193279,3.34678203,3180.5,3179.4,3.459677]
[1720706193443,0.98608203,3180.7,3179.5,2.4766]
[1720706193641,0.98608203,3180.8,3179.6,0.06289133]
[1720706193871,0.12512704,3180.7,3179.6,0.06289133]
[1720706194044,0.12515127,3180.6,3179.5,5.62166]
[1720706194376,3.35788203,3180.9,3179.7,3.14488]
[1720706194574,0.12513275,3180.8,3179.8,3.20766936]
[1720706194728,2.3718,3180.9,3179.8,3.20766936]
[1720706195286,0.98608203,3181.2,3180.0,3.14459]
[1720706195464,0.23008581,3181.1,3180.2,3.14441]
[1720706195679,2.2584,3181.4,3180.2,3.14441]
[1720706195883,2.2584,3181.4,3180.3,3.14434]
[1720706196062,1.31477604,3181.7,3180.4,5.46409578]
[1720706196063,0.98608203,3181.7,3180.4,5.46409578]
[1720706196248,0.12478535,3181.6,3180.5,3.14407]
[1720706196593,3.14307,3181.6,3180.5,3.14407]
[1720706196883,0.314307,3181.5,3180.5,3.14407]
[1720706197055,0.314307,3181.5,3180.4,2.257]
[1720706197486,0.314307,3181.5,3180.1,3.14455]
[1720706197487,3.1435,3181.2,3180.1,3.14455]
[1720706198646,3.14366,3181.0,3179.8,5.62349]
[1720706198849,3.1435,3181.2,3179.9,3.14469]
[1720706199151,0.31435,3181.1,3180.0,3.14463]
[1720706199350,3.14347,3181.2,3179.9,3.14467]
[1720706199552,3.14368,3181.0,3179.8,2.4787]
[1720706199853,6.019507,3181.5,3180.1,3.14455]
[1720706200062,3.14328,3181.4,3180.2,3.14445]
[1720706200296,3.457537,3181.5,3180.3,3.14431]
[1720706200494,3.4890337,3181.4,3180.3,3.14431]
[1720706201254,3.1434,3181.3,3180.0,3.14464]
[1720706201455,3.14372,3181.0,3179.8,5.62354]
[1720706201796,3.1435,3181.2,3179.9,3.14473]
[1720706201987,3.1434,3181.3,3179.9,3.14469]
[1720706202292,0.66324637,3181.2,3180.2,3.14444]
[1720706203402,3.80678637,3181.2,3179.9,4.034079]
[1720706203698,3.14382,3180.9,3179.9,0.2]
[1720706204002,2.2771,3181.1,3179.9,0.2]
[1720706204003,3.14396,3180.7,3179.9,0.2]
[1720706204185,2.2771,3181.1,3179.9,0.2]
[1720706204186,2.562,3181.0,3179.9,0.2]
[1720706204393,3.14427,3180.4,3179.9,0.2]
[1720706204688,3.14436,3180.3,3179.9,0.2]
[1720706204870,6.28881,3180.3,3179.9,0.2]
[1720706205067,3.14436,3180.3,3179.9,0.2]
[1720706205282,3.14455,3180.1,3179.9,0.2]
[1720706206370,0.314436,3180.2,3179.9,0.2]
[1720706206371,3.458926,3180.2,3179.9,0.2]
[1720706206756,3.458926,3180.2,3179.9,0.4]
[1720706208198,0.314436,3180.2,3179.9,0.4]
[1720706209076,3.14457,3180.1,3179.9,0.4]
[1720706209271,0.3459006,3180.0,3179.9,0.33666652]
[1720706210363,0.314436,3180.2,3179.9,0.33666652]
[1720706210619,3.14403,3180.7,3179.9,0.33666652]
[1720706210809,3.14389,3180.8,3179.9,0.53666652]
[1720706211117,0.29403464,3181.0,3179.9,0.53666652]
[1720706211260,0.29403464,3181.0,3180.1,3.14454]
[1720706211466,3.14373,3181.0,3179.9,3.68140652]
[1720706211707,3.14377,3180.9,3179.9,0.53666652]
[1720706211922,3.14386,3180.8,3179.9,0.53666652]
[1720706212067,5.56882098,3181.3,3179.9,0.53666652]
[1720706212068,3.14417,3180.5,3179.9,0.53666652]
[1720706212573,3.144,3180.7,3179.9,0.53666652]
[1720706212574,6.28804,3180.7,3179.9,0.53666652]
[1720706212891,0.628804,3180.6,3179.9,0.53666652]
[1720706213086,3.14398,3180.7,3179.9,0.53666652]
[1720706213291,3.14424,3180.5,3179.9,0.53666652]
[1720706213491,3.14426,3180.4,3179.9,0.53666652]
[1720706213804,3.14441,3180.3,3179.9,0.53666652]
[1720706214121,3.14447,3180.2,3179.9,0.53666652]
[1720706214266,0.314447,3180.1,3179.9,0.53666652]
[1720706214462,3.79823488,3180.5,3179.9,0.53666652]
[1720706214463,3.14421,3180.5,3179.9,0.53666652]
[1720706214666,3.14426,3180.4,3179.9,0.53666652]
[1720706215004,0.65402488,3180.7,3179.9,0.53666652]
[1720706215173,3.14397,3180.7,3179.9,0.53666652]
[1720706215595,3.79799488,3180.7,3179.9,0.53666652]
[1720706215803,0.37979949,3180.6,3179.9,0.53666652]
[1720706216279,3.52385949,3180.6,3179.9,0.53666652]
[1720706216474,4.17788437,3180.6,3179.9,0.53666652]
[1720706216705,3.14427,3180.4,3179.9,0.53666652]
[1720706216898,4.17788437,3180.6,3179.9,0.53666652]
[1720706216899,3.14418,3180.5,3179.9,0.53666652]
[1720706217102,0.41778844,3180.5,3179.9,0.53666652]
[1720706217508,1.08898704,3180.4,3179.9,0.53666652]
[1720706217675,1.07260887,3180.5,3179.9,0.53666652]
[1720706217880,1.08898093,3180.4,3179.9,0.53666652]
[1720706218080,0.25413893,3180.4,3179.9,0.53666652]
[1720706218410,1.08897747,3180.3,3179.9,0.53666652]
[1720706218569,1.08897747,3180.2,3179.9,0.53666652]
[1720706218769,3.14447,3180.2,3179.9,0.53666652]
[1720706219010,1.70380151,3180.1,3179.9,0.53666652]
[1720706219214,0.48882679,3180.1,3179.9,0.53666652]
[1720706219380,1.08906558,3180.0,3179.9,0.53666652]
[1720706219586,1.21513161,3180.0,3179.9,0.53666652]
[1720706219885,1.87084885,3180.0,3179.9,0.53666652]
[1720706220102,2.519621,3180.0,3179.9,0.53666652]
[1720706220585,1.30448939,3180.0,3179.9,0.53666652]
[1720706220915,8.15327134,3180.0,3179.9,0.53666652]
[1720706221073,9.93854743,3180.0,3179.9,0.53666652]
[1720706221270,8.62711295,3180.0,3179.9,0.30230228]
[1720706221475,10.26733118,3180.0,3179.9,0.30230228]
[1720706221693,8.62711295,3180.0,3179.9,0.30230228]
[1720706221905,3.14506,3179.6,3179.0,3.28767736]
[1720706222197,0.65607505,3179.3,3178.9,0.4]
[1720706222511,2.51381776,3179.5,3178.9,0.4]
[1720706222512,0.65607505,3179.4,3178.9,0.4]
[1720706222680,1.8615111,3179.3,3178.9,0.4]
[1720706222884,1.8615111,3179.2,3178.9,0.4]
[1720706223096,1.2055622,3179.1,3178.9,0.4]
[1720706223303,0.65607505,3179.4,3178.9,0.4]
[1720706223483,0.65607505,3179.6,3179.0,2.3143]
[1720706223686,0.65607505,3179.7,3179.0,2.3143]
[1720706223919,1.08917119,3179.6,3179.0,5.52282397]
[1720706224080,0.65607505,3179.9,3179.0,5.52282397]
[1720706224395,0.65607505,3179.9,3179.0,6.15056567]
[1720706224598,0.65607505,3179.9,3179.1,3.1455]
[1720706225076,0.65607505,3179.9,3179.0,2.9420417]
[1720706225271,1.20512981,3179.8,3179.0,2.3143]
[1720706225471,5.00625725,3179.7,3179.0,2.3143]
[1720706225702,0.65607505,3179.5,3178.9,0.4]
[1720706225904,0.77218592,3179.5,3178.9,0.4]
[1720706226090,0.11611087,3179.4,3178.9,0.4]
[1720706226287,0.11949291,3179.4,3178.9,0.4]
[1720706226502,0.77556796,3179.3,3178.9,0.4]
[1720706226772,0.65607505,3179.2,3178.9,0.4]
[1720706226977,0.77562156,3179.2,3178.9,0.4]
[1720706227176,0.65607505,3179.2,3178.9,0.4]
[1720706227377,0.65607505,3179.1,3178.9,0.4]
[1720706228828,0.77564803,3179.1,3178.9,0.4]
[1720706229045,0.65607505,3179.2,3178.9,0.4]
[1720706229182,0.65607505,3179.3,3178.9,0.4]
[1720706229381,0.65607505,3179.4,3178.9,0.4]
[1720706229581,0.77562678,3179.3,3178.9,0.4]
[1720706229932,0.65607505,3179.5,3178.9,0.4]
[1720706230128,0.65607505,3179.6,3178.9,3.54572]
[1720706230427,0.65607505,3179.5,3179.0,3.14564]
[1720706230916,0.77559309,3179.5,3178.9,1.13204955]
[1720706231119,0.77559309,3179.4,3178.9,0.4]
[1720706231328,0.77559309,3179.3,3178.9,0.4]
[1720706231624,0.65607505,3179.4,3178.9,0.4]
[1720706231819,1.3121501,3179.7,3178.9,0.4]
[1720706231820,0.65607505,3179.5,3179.1,2.4995]
[1720706232224,0.65607505,3179.6,3179.1,5.64499]
[1720706232531,0.65607505,3179.6,3179.3,3.14526]
[1720706232728,0.65607505,3179.6,3179.1,6.249496]
[1720706232897,0.78062528,3179.5,3179.1,6.249496]
[1720706233119,0.78062528,3179.5,3179.1,3.104016]
[1720706233120,0.65607505,3179.5,3179.1,3.104016]
[1720706233325,0.78065676,3179.4,3179.1,2.4995]
[1720706233533,0.65607505,3179.4,3179.1,2.4995]
[1720706233848,0.78075094,3179.4,3179.1,2.4995]
[1720706234044,0.65607505,3179.4,3179.1,2.4995]
[1720706234221,0.98411257,3179.6,3179.1,5.64504]
[1720706234222,0.65607505,3179.5,3179.1,5.64504]
[1720706234404,0.78072331,3179.4,3179.2,3.14537]
[1720706234611,0.65607505,3179.5,3179.2,3.14537]
[1720706234837,0.78073817,3179.4,3179.2,3.14537]
[1720706235165,0.65607505,3179.5,3179.3,3.14534]
[1720706235458,0.65607505,3179.4,3179.3,3.14534]
[1720706235609,0.12471541,3179.4,3179.3,3.14534]
[1720706236157,0.12471178,3179.4,3179.3,4.1162831]
[1720706236449,0.65607505,3179.6,3179.5,3.14514]
[1720706236605,0.65607505,3179.7,3179.6,6.29008]
[1720706236809,0.65607505,3180.0,3179.8,3.14484]
[1720706237041,0.78065553,3180.0,3179.9,3.14475]
[1720706237414,0.65607505,3180.1,3180.0,3.14465]
[1720706237617,0.65607505,3180.2,3180.1,3.14455]
[1720706237950,0.6581687,3180.2,3180.1,3.14455]
[1720706238151,0.78269186,3180.2,3180.1,3.14455]
[1720706238306,0.6581687,3180.2,3179.9,6.28943]
[1720706238512,0.6581687,3180.2,3180.0,3.14463]
[1720706239019,0.6581687,3180.2,3180.1,3.14455]
[1720706239323,0.78264327,3180.2,3180.1,3.14455]
[1720706239526,0.78264327,3180.2,3179.9,4.010463]
[1720706239820,0.78264462,3180.1,3179.9,4.010463]
[1720706240026,0.6581687,3180.3,3180.1,3.14455]
[1720706240250,0.78260618,3180.2,3180.1,3.14455]
[1720706240543,0.98411257,3180.4,3180.1,3.8600513]
[1720706240544,0.6581687,3180.4,3180.1,3.8600513]
[1720706241043,0.6581687,3180.4,3180.2,3.20733396]
[1720706241233,0.6581687,3180.5,3180.2,3.20733396]
[1720706241432,0.12439268,3180.4,3180.2,3.20733396]
[1720706241633,0.6581687,3180.5,3180.4,5.60545]
[1720706241810,0.78253707,3180.5,3180.4,5.60545]
[1720706242325,0.6581687,3180.5,3180.4,5.60545]
[1720706242948,0.6581687,3180.6,3180.5,3.14415]
[1720706243115,0.12431832,3180.6,3180.5,3.14415]
[1720706243457,0.12431832,3180.6,3180.0,3.14461]
[1720706243458,1.3121501,3180.6,3180.0,3.14462]
[1720706243663,0.65803752,3180.3,3180.2,3.14445]
[1720706243840,0.78235584,3180.3,3180.2,3.14445]
[1720706244143,0.65803752,3180.4,3180.3,3.14435]
[1720706244377,0.98705628,3180.6,3180.4,5.44155]
[1720706244556,1.3121501,3180.7,3180.6,3.14406]
[1720706244557,0.6579818,3180.7,3180.6,3.14406]
[1720706244856,0.1243178,3180.7,3180.6,3.14406]
[1720706245055,0.6579818,3180.8,3180.7,3.14396]
[1720706245215,0.78225428,3180.8,3180.7,3.14396]
[1720706245559,3.14295,3181.8,3180.7,3.772771]
[1720706245739,0.65783978,3180.9,3180.7,6.28782]
[1720706245944,0.65783978,3180.9,3180.7,3.14386]
[1720706246262,0.12426474,3180.8,3180.7,3.14386]
[1720706246659,0.78210452,3180.8,3180.5,3.1441]
[1720706246864,0.78210452,3180.8,3180.3,6.43197736]
[1720706246865,0.12427738,3180.7,3180.3,6.43197736]
[1720706247156,0.78211716,3180.6,3180.3,6.43197736]
[1720706247361,0.65783978,3180.6,3180.3,9.57626736]
[1720706247647,0.65783978,3180.7,3180.3,9.57626736]
[1720706247862,0.65783978,3180.7,3180.3,6.43196736]
[1720706248070,0.78217264,3180.6,3180.3,6.43196736]
[1720706248222,0.65783978,3180.6,3180.4,3.14424]
[1720706248423,0.65783978,3180.7,3180.4,4.10186074]
[1720706248662,0.98675967,3180.8,3180.6,3.14398]
[1720706248663,0.65783978,3180.8,3180.6,3.14398]
[1720706248860,0.12428393,3180.7,3180.6,3.14398]
[1720706249063,0.65772498,3180.8,3180.6,3.14398]
[1720706249243,0.65772498,3180.9,3180.6,3.14398]
[1720706249634,0.12425709,3180.8,3180.6,3.14398]
[1720706249953,0.65772498,3180.9,3180.6,3.14398]
[1720706250160,0.1242612,3180.8,3180.6,3.20685328]
[1720706250321,0.65772498,3180.9,3180.6,5.47245328]
[1720706250851,0.65772498,3180.9,3180.7,3.14387]
[1720706251020,0.65772498,3181.0,3180.7,3.14387]
[1720706251441,0.65772498,3181.1,3180.8,3.2066707]
[1720706251651,0.65772498,3181.2,3181.1,3.14356]
[1720706252007,0.65772498,3181.4,3181.2,3.14345]
[1720706252166,0.65772498,3181.5,3181.2,3.14345]
[1720706252507,0.65772498,3181.5,3181.3,0.06286222]
[1720706252793,0.65772498,3181.5,3181.3,3.14336]
[1720706252999,0.65772498,3181.6,3181.3,3.14336]
[1720706253153,0.65772498,3181.6,3181.5,3.14317]
[1720706253361,0.65772498,3181.8,3181.5,3.14317]
[1720706253559,0.65772498,3181.9,3181.5,3.14317]
[1720706253861,0.65772498,3182.1,3181.6,0.062855]
[1720706254065,0.65772498,3182.2,3181.6,0.062855]
[1720706254272,0.12377899,3182.1,3181.6,3.205825]
[1720706254602,0.65772498,3182.3,3181.7,3.14291]
[1720706255184,0.65772498,3182.3,3181.4,3.14322]
[1720706255494,0.65772498,3182.0,3181.3,2.6706]
[1720706255672,0.12379401,3181.9,3181.3,2.6706]
[1720706255998,0.12379401,3181.9,3181.3,0.2]
[1720706255999,0.83453563,3181.9,3181.3,0.2]
[1720706256294,0.78153044,3181.8,3181.3,0.2]
[1720706256465,0.65772498,3181.8,3181.3,0.2]
[1720706257003,0.1238277,3181.7,3181.3,0.2]
[1720706257164,0.65772498,3181.5,3181.3,0.2]
[1720706257496,0.65772498,3181.5,3181.3,0.4]
[1720706257793,0.65772498,3181.6,3181.3,0.4]
[1720706257956,0.82215623,3181.6,3181.3,0.4]
[1720706258607,0.16443125,3181.6,3181.3,0.4]
[1720706259070,0.65581503,3181.7,3181.3,0.4]
[1720706259402,0.65581503,3181.8,3181.3,0.4]
[1720706259992,0.65581503,3181.7,3181.3,0.4]
[1720706260152,0.12380431,3181.6,3181.3,0.4]
[1720706260668,0.65581503,3181.6,3181.3,0.4]
[1720706260984,3.1429,3181.8,3181.3,0.4]
[1720706260985,0.17633419,3181.5,3181.3,0.4]
[1720706261286,0.65581503,3181.8,3181.3,0.4]
[1720706261661,0.65581503,3182.0,3181.4,0.06286488]
[1720706262061,0.65581503,3182.3,3181.4,0.06286488]
[1720706262294,0.3798155,3182.2,3181.4,0.06286488]
[1720706262492,0.65581503,3182.4,3181.4,0.06286488]
[1720706262796,0.65581503,3182.4,3181.3,2.8098]
[1720706263006,0.65581503,3182.5,3181.7,3.14294]
[1720706263184,0.12684553,3182.4,3181.7,3.14294]
[1720706263368,0.65581503,3182.5,3181.7,3.14294]
[1720706263575,0.65581503,3182.5,3181.5,3.14308]
[1720706263766,3.79800503,3182.5,3181.4,3.14324]
[1720706263973,2.25067617,3182.4,3181.4,3.14324]
[1720706264172,1.03561553,3182.4,3181.5,3.14315]
[1720706264366,0.3798005,3182.4,3181.5,3.14315]
[1720706265409,0.3798005,3182.4,3181.4,3.14324]
[1720706265563,3.14239,3182.3,3181.3,2.6098]
[1720706265767,1.08822428,3182.2,3181.3,2.6098]
[1720706266189,1.08822428,3182.2,3181.3,5.75316]
[1720706267575,1.08822428,3182.2,3181.5,3.14315]
[1720706267907,0.41768373,3182.3,3181.5,3.14315]
[1720706268129,1.08829031,3182.2,3181.5,3.14315]
[1720706268418,0.98227025,3182.6,3181.7,3.14291]
[1720706268419,0.65484683,3182.5,3181.7,3.14291]
[1720706268617,1.08826219,3182.4,3181.7,3.14291]
[1720706268789,0.65484683,3182.6,3181.7,3.14291]
[1720706269116,1.08821675,3182.5,3181.7,3.771512]
[1720706269316,0.65484683,3182.7,3181.7,3.771512]
[1720706269620,1.87474435,3182.6,3181.7,3.14291]
[1720706269816,1.088166,3182.5,3181.9,3.14277]
[1720706270005,0.65484683,3182.8,3182.0,0.06284739]
[1720706270205,1.08812619,3182.7,3182.0,0.06284739]
[1720706270411,1.08812619,3182.6,3182.2,3.14242]
[1720706270579,0.65484683,3183.0,3182.2,3.14242]
[1720706270775,1.08807561,3182.9,3182.2,3.14242]
[1720706270971,1.08807561,3182.8,3182.3,3.14237]
[1720706271272,0.65484683,3183.1,3182.3,3.14237]
[1720706271469,1.25175257,3183.0,3182.3,3.14237]
[1720706271690,1.08803944,3182.9,3182.3,3.14237]
[1720706271914,0.16371171,3183.0,3182.3,3.14237]
[1720706272121,1.08803889,3182.9,3182.3,6.28467]
[1720706272325,0.16371171,3183.0,3182.3,3.1423]
[1720706272613,1.08803511,3182.9,3182.3,3.1423]
[1720706272815,0.65484683,3183.1,3182.3,3.1423]
[1720706273014,1.87448211,3183.0,3182.1,3.14248]
[1720706273188,1.08802295,3182.9,3182.1,3.14248]
[1720706273526,0.17428698,3182.8,3182.1,3.14248]
[1720706273690,0.17428698,3182.8,3182.0,2.3444]
[1720706273691,1.08810414,3182.7,3182.0,2.3444]
[1720706273895,0.17428698,3182.8,3182.0,2.3444]
[1720706274085,0.17428698,3182.8,3182.0,5.48705]
[1720706274416,1.08809842,3182.7,3182.0,5.48705]
[1720706274634,1.08809842,3182.7,3181.6,3.28767736]
[1720706274635,3.31623698,3182.8,3181.6,6.43064736]
[1720706274836,3.31623698,3182.8,3181.7,3.14296]
[1720706274837,4.32573674,3182.7,3181.7,3.14296]
[1720706275042,1.21998723,3182.6,3181.7,3.14296]
[1720706275216,1.0881857,3182.5,3181.7,3.14296]
[1720706275741,1.0881857,3182.5,3181.5,2.4683]
[1720706275910,0.7867048,3182.4,3181.4,1.27]
[1720706276118,2.5714916,3182.3,3181.4,1.27]
[1720706276314,1.0881857,3182.2,3181.4,4.41321]
[1720706276514,1.4833059,3182.3,3181.6,3.14302]
[1720706276719,0.65484683,3182.5,3181.7,3.14296]
[1720706276927,0.65484683,3182.6,3181.7,3.14296]
[1720706277138,1.08818752,3182.5,3181.7,3.14296]
[1720706277455,0.65484683,3182.5,3181.7,3.14296]
[1720706277651,0.65484683,3182.5,3181.4,4.41321]
[1720706277856,2.3574,3182.3,3181.4,1.27]
[1720706278013,1.13134533,3182.2,3181.4,1.27]
[1720706278371,0.65484683,3182.5,3181.7,5.55554]
[1720706278659,0.65484683,3182.6,3181.9,3.14276]
[1720706278811,1.08813167,3182.5,3181.9,3.14276]
[1720706279014,1.22012366,3182.4,3181.7,2.4126]
[1720706279215,0.65484683,3182.4,3181.8,3.14284]
[1720706279436,0.65619226,3182.4,3181.9,3.14269]
[1720706279649,0.65619226,3182.5,3182.0,3.14263]
[1720706279856,0.65619226,3182.6,3182.1,0.06284553]
[1720706280059,0.65619226,3182.7,3182.3,3.14237]
[1720706280230,0.98428839,3182.9,3182.3,3.14237]
[1720706280231,0.65619226,3182.9,3182.3,3.14237]
[1720706280439,1.7442091,3182.8,3182.1,0.06284553]
[1720706280633,0.98428839,3182.9,3182.1,0.06284553]
[1720706280634,1.87620473,3182.7,3182.1,3.14252]
[1720706280874,1.87620473,3182.7,3182.2,3.14241]
[1720706280875,0.65619226,3182.7,3182.2,3.14241]
[1720706281164,0.65619226,3182.8,3182.2,3.14241]
[1720706281349,0.65619226,3182.6,3182.0,3.1426]
[1720706281539,0.7881438,3182.6,3182.0,3.1426]
[1720706281739,0.65619226,3182.6,3182.0,3.1426]
[1720706282143,0.83344328,3182.6,3181.8,3.14279]
[1720706282336,0.83344328,3182.6,3181.9,3.14271]
[1720706282337,0.13202954,3182.5,3181.9,3.14271]
[1720706282538,0.65619226,3182.5,3181.9,3.14276]
[1720706282734,0.7882218,3182.4,3181.9,3.14276]
[1720706282968,0.65619226,3182.4,3181.9,3.14276]
[1720706283285,0.65619226,3182.5,3181.9,3.14276]
[1720706283456,0.78830813,3182.5,3181.9,3.14276]
[1720706283627,0.78830813,3182.4,3181.9,3.14276]
[1720706283824,0.65619226,3182.4,3181.9,3.14276]
[1720706284029,0.65619226,3182.5,3182.0,3.14267]
[1720706284331,0.78906734,3182.4,3182.0,3.14267]
[1720706284635,1.3138949,3182.7,3182.0,3.771213]
[1720706284636,0.65694745,3182.5,3182.0,3.771213]
[1720706284835,0.13212076,3182.4,3182.0,3.14267]
[1720706285072,0.65694745,3182.5,3182.2,3.14239]
[1720706285363,0.65694745,3182.6,3182.2,3.14239]
[1720706285570,0.78905946,3182.5,3182.2,6.28478]
[1720706285866,0.65694745,3182.6,3182.2,6.28478]
[1720706286228,0.65694745,3182.6,3182.3,3.14238]
[1720706287175,0.65694745,3182.6,3182.4,3.14225]
[1720706287329,0.78903692,3182.6,3182.4,3.14225]
[1720706287673,0.13211572,3182.5,3182.4,3.14225]
[1720706287873,0.65694745,3182.6,3182.5,0.2]
[1720706288044,0.16423686,3182.6,3182.5,0.2]
[1720706288243,0.29634034,3182.6,3182.5,0.2]
[1720706288461,2.36984423,3182.6,3182.5,0.2]
[1720706288631,1.8642587,3182.6,3182.5,0.2]
[1720706288827,2.37039871,3182.6,3182.5,0.2]
[1720706289069,1.86426939,3182.6,3182.5,0.2]
[1720706289368,3.17816429,3182.6,3182.5,0.2]
[1720706290495,3.17830543,3182.6,3182.5,0.2]
[1720706290695,1.70017367,3182.6,3182.5,0.2]
[1720706291203,3.01406857,3182.6,3182.5,0.2]
[1720706292107,1.70017367,3182.6,3182.5,0.4]
[1720706292411,3.34427965,3182.6,3182.5,0.4]
[1720706293204,1.70017367,3182.6,3182.5,0.4]
[1720706293408,3.67870762,3182.6,3182.5,0.4]
[1720706293610,3.34427965,3182.6,3182.5,0.4]
[1720706293768,2.25619663,3182.6,3182.5,0.4]
[1720706293973,2.73220826,3182.6,3182.5,0.4]
[1720706294289,3.34429891,3182.6,3182.5,0.4]
[1720706295702,1.70019293,3182.6,3182.5,0.4]
[1720706296283,1.70019293,3182.6,3182.5,0.6]
[1720706296488,2.06750494,3182.6,3182.5,0.6]
[1720706297197,2.06770595,3182.6,3182.5,0.6]
[1720706297398,7.13820965,3182.6,3182.5,0.6]
[1720706297712,8.30498157,3182.6,3182.5,0.50269438]
[1720706297910,5.16290157,3182.6,3182.5,0.50269438]
[1720706298118,2.85890157,3182.6,3182.5,0.50269438]
[1720706298416,4.83515771,3182.6,3182.5,0.50269438]
[1720706298588,1.70058428,3182.6,3182.5,0.50269438]
[1720706299789,2.73500491,3182.6,3182.5,0.50269438]
[1720706300015,3.34301476,3182.6,3182.5,0.50269438]
[1720706300310,0.60807058,3182.6,3182.5,0.70269438]
[1720706300511,1.08804228,3182.6,3182.5,0.70269438]
[1720706300671,3.34287563,3182.6,3182.5,0.70269438]
[1720706301071,1.69611286,3182.6,3182.5,0.70269438]
[1720706302527,3.01344111,3182.6,3182.5,3.84487438]
[1720706302833,1.11618504,3182.6,3182.5,7.69205093]
[1720706303038,1.11618504,3182.6,3182.5,10.14845093]
[1720706303039,0.78681183,3182.6,3182.5,10.14845093]
[1720706303211,0.12822425,3182.6,3182.5,10.14845093]
[1720706303409,0.65858758,3182.8,3182.5,3.86409093]
[1720706303609,0.65858758,3182.8,3182.7,6.28396]
[1720706304237,0.98796079,3182.9,3182.5,0.70269438]
[1720706304403,0.98796079,3182.7,3182.5,0.70269438]
[1720706304615,0.98796079,3182.6,3182.5,7.18705438]
[1720706304947,1.31732825,3182.8,3182.7,3.14198]